[Event "Titled Tuesday Blitz June 13 Late 2023"]
[White "Yanchenko, Roman"]
[Black "Droin, Augustin"]
[WhiteFideId "4137329"]
[BlackFideId "45105987"]
[WhiteElo "2491"]
[BlackElo "2333"]
[Result "1-0"]
[Round "1"]
[TimeControl "180+2"]
[Date "2023.06.13"]
[WhiteClock "0:00:40"]
[BlackClock "0:00:15"]
[Board "84"]

1. d4 {[%clk 0:03:00]}  d5 {[%clk 0:02:55]} 2. Nf3 {[%clk 0:03:00]}  Nf6 {[%clk 0:02:18]} 3. c4 {[%clk 0:03:00]}  e6 {[%clk 0:02:18]} 4. Nc3 {[%clk 0:03:00]}  c6 {[%clk 0:02:19]} 5. Bg5 {[%clk 0:03:00]}  dxc4 {[%clk 0:02:17]} 6. a4 {[%clk 0:03:00]}  Bb4 {[%clk 0:02:15]} 7. e3 {[%clk 0:03:00]}  b5 {[%clk 0:02:13]} 8. axb5 {[%clk 0:03:00]}  cxb5 {[%clk 0:02:14]} 9. g3 {[%clk 0:02:58]}  Bb7 {[%clk 0:02:12]} 10. Bg2 {[%clk 0:02:58]}  a6 {[%clk 0:02:11]} 11. O-O {[%clk 0:02:56]}  Nbd7 {[%clk 0:02:11]} 12. Ne5 {[%clk 0:02:53]}  Bxg2 {[%clk 0:02:10]} 13. Kxg2 {[%clk 0:02:52]}  Bxc3 {[%clk 0:02:08]} 14. Nxd7 {[%clk 0:02:28]}  Qxd7 {[%clk 0:02:08]} 15. Bxf6 {[%clk 0:02:23]}  Bxb2 {[%clk 0:01:54]} 16. Bxg7 {[%clk 0:02:21]}  Rg8 {[%clk 0:01:53]} 17. Qf3 {[%clk 0:02:21]}  Qd5 {[%clk 0:01:42]} 18. e4 {[%clk 0:02:21]}  Qb7 {[%clk 0:01:34]} 19. Ra2 {[%clk 0:02:09]}  Rxg7 {[%clk 0:01:33]} 20. Rxb2 {[%clk 0:02:09]}  O-O-O {[%clk 0:01:34]} 21. Rd1 {[%clk 0:02:05]}  f5 {[%clk 0:01:33]} 22. d5 {[%clk 0:02:00]}  fxe4 {[%clk 0:01:31]} 23. Qxe4 {[%clk 0:01:58]}  exd5 {[%clk 0:01:31]} 24. Qd4 {[%clk 0:01:58]}  Re7 {[%clk 0:01:30]} 25. Ra2 {[%clk 0:01:56]}  Re4 {[%clk 0:01:29]} 26. Qc5+ {[%clk 0:01:56]}  Kb8 {[%clk 0:01:29]} 27. Rda1 {[%clk 0:01:56]}  d4 {[%clk 0:01:24]} 28. f3 {[%clk 0:01:38]}  Re6 {[%clk 0:01:22]} 29. Qf5 {[%clk 0:01:38]}  Rde8 {[%clk 0:01:20]} 30. Qf4+ {[%clk 0:01:37]}  Ka8 {[%clk 0:00:53]} 31. Qxd4 {[%clk 0:01:37]}  Re2+ {[%clk 0:00:50]} 32. Rxe2 {[%clk 0:01:37]}  Rxe2+ {[%clk 0:00:51]} 33. Kh3 {[%clk 0:01:37]}  Qc8+ {[%clk 0:00:45]} 34. g4 {[%clk 0:01:38]}  Qc6 {[%clk 0:00:43]} 35. Qf4 {[%clk 0:01:08]}  c3 {[%clk 0:00:40]} 36. Qf8+ {[%clk 0:00:54]}  Kb7 {[%clk 0:00:26]} 37. Qf7+ {[%clk 0:00:52]}  Kb6 {[%clk 0:00:22]} 38. Qf8 {[%clk 0:00:42]}  Qc7 {[%clk 0:00:22]} 39. Qf6+ {[%clk 0:00:40]}  Kb7 {[%clk 0:00:15]} 40. Qxa6+ {[%clk 0:00:40]} 1-0


[Site "https://www.chess.com"]

[Event "Titled Tuesday Blitz June 13 Late 2023"]
[White "Sivakumar, Shaaketh"]
[Black "Shuvalova, Polina"]
[WhiteFideId "30940176"]
[BlackFideId "24171760"]
[WhiteElo "2174"]
[BlackElo "2281"]
[Result "0-1"]
[Round "1"]
[TimeControl "180+2"]
[Date "2023.06.13"]
[WhiteClock "0:02:04"]
[BlackClock "0:01:35"]
[Board "87"]

1. e4 {[%clk 0:03:00]}  c6 {[%clk 0:02:59]} 2. d4 {[%clk 0:02:57]}  d5 {[%clk 0:03:00]} 3. Nc3 {[%clk 0:02:57]}  dxe4 {[%clk 0:03:00]} 4. Nxe4 {[%clk 0:02:58]}  Nf6 {[%clk 0:03:00]} 5. Nxf6+ {[%clk 0:02:56]}  exf6 {[%clk 0:03:01]} 6. Nf3 {[%clk 0:02:56]}  Bd6 {[%clk 0:03:02]} 7. Be2 {[%clk 0:02:56]}  O-O {[%clk 0:03:02]} 8. O-O {[%clk 0:02:57]}  Re8 {[%clk 0:03:02]} 9. b3 {[%clk 0:02:57]}  Bg4 {[%clk 0:03:00]} 10. h3 {[%clk 0:02:55]}  Bh5 {[%clk 0:02:56]} 11. Bb2 {[%clk 0:02:54]}  Nd7 {[%clk 0:02:56]} 12. c4 {[%clk 0:02:53]}  Rc8 {[%clk 0:02:52]} 13. Rc1 {[%clk 0:02:52]}  Bb8 {[%clk 0:02:49]} 14. a3 {[%clk 0:02:52]}  Qc7 {[%clk 0:02:47]} 15. g3 {[%clk 0:02:46]}  Nf8 {[%clk 0:02:35]} 16. Re1 {[%clk 0:02:44]}  Qd7 {[%clk 0:02:29]} 17. Kg2 {[%clk 0:02:37]}  Rcd8 {[%clk 0:02:25]} 18. Nd2 {[%clk 0:02:31]}  Rxe2 {[%clk 0:02:15]} 19. Rxe2 {[%clk 0:02:32]}  Bxe2 {[%clk 0:02:14]} 20. Qxe2 {[%clk 0:02:33]}  Re8 {[%clk 0:02:13]} 21. Qd3 {[%clk 0:02:31]}  Ne6 {[%clk 0:02:11]} 22. Nf3 {[%clk 0:02:26]}  Rd8 {[%clk 0:01:55]} 23. Rd1 {[%clk 0:02:25]}  h5 {[%clk 0:01:46]} 24. Qf5 {[%clk 0:02:12]}  Nf4+ {[%clk 0:01:38]} 25. Qxf4 {[%clk 0:02:10]}  Bxf4 {[%clk 0:01:37]} 26. gxf4 {[%clk 0:02:10]}  Qf5 {[%clk 0:01:37]} 27. Kg3 {[%clk 0:02:04]}  Qc2 {[%clk 0:01:35]} 0-1


[Site "https://www.chess.com"]

[Event "Titled Tuesday Blitz June 13 Late 2023"]
[White "Mazurkiewicz, Michal"]
[Black "Nazari, Arad"]
[WhiteFideId "1124943"]
[BlackFideId "12577324"]
[WhiteElo "2063"]
[BlackElo "2175"]
[Result "0-1"]
[Round "1"]
[TimeControl "180+2"]
[Date "2023.06.13"]
[WhiteClock "0:01:06"]
[BlackClock "0:01:30"]
[Board "89"]

1. e4 {[%clk 0:02:59]}  c5 {[%clk 0:02:50]} 2. Nf3 {[%clk 0:02:59]}  d6 {[%clk 0:02:48]} 3. g3 {[%clk 0:03:00]}  Nf6 {[%clk 0:02:46]} 4. d3 {[%clk 0:03:00]}  g6 {[%clk 0:02:46]} 5. Bg2 {[%clk 0:03:00]}  Bg7 {[%clk 0:02:46]} 6. O-O {[%clk 0:03:00]}  O-O {[%clk 0:02:47]} 7. Re1 {[%clk 0:03:00]}  Nc6 {[%clk 0:02:47]} 8. e5 {[%clk 0:03:01]}  dxe5 {[%clk 0:02:48]} 9. Nxe5 {[%clk 0:03:01]}  Nxe5 {[%clk 0:02:48]} 10. Rxe5 {[%clk 0:03:02]}  Nd7 {[%clk 0:02:46]} 11. Re1 {[%clk 0:03:02]}  Rb8 {[%clk 0:02:46]} 12. Nd2 {[%clk 0:02:58]}  b6 {[%clk 0:02:46]} 13. Nc4 {[%clk 0:02:51]}  Bb7 {[%clk 0:02:45]} 14. Bf4 {[%clk 0:02:50]}  Bxg2 {[%clk 0:02:10]} 15. Bxb8 {[%clk 0:02:46]}  Bh3 {[%clk 0:02:09]} 16. Bf4 {[%clk 0:02:44]}  b5 {[%clk 0:02:09]} 17. Ne3 {[%clk 0:02:43]}  e5 {[%clk 0:02:07]} 18. Bxe5 {[%clk 0:02:11]}  Nxe5 {[%clk 0:01:55]} 19. f4 {[%clk 0:02:11]}  Nc6 {[%clk 0:01:48]} 20. c3 {[%clk 0:02:09]}  h5 {[%clk 0:01:41]} 21. Qf3 {[%clk 0:02:07]}  Ne7 {[%clk 0:01:36]} 22. Rad1 {[%clk 0:02:04]}  Nf5 {[%clk 0:01:36]} 23. Nxf5 {[%clk 0:01:59]}  Bxf5 {[%clk 0:01:37]} 24. Rd2 {[%clk 0:01:48]}  b4 {[%clk 0:01:34]} 25. Rc1 {[%clk 0:01:30]}  bxc3 {[%clk 0:01:31]} 26. bxc3 {[%clk 0:01:06]}  Bxc3 {[%clk 0:01:30]} 0-1


[Site "https://www.chess.com"]

[Event "Titled Tuesday Blitz June 13 Late 2023"]
[White "Tejedor Fuente, Enrique"]
[Black "Smiechu"]
[WhiteFideId "2299100"]
[WhiteElo "2496"]
[BlackElo "2406"]
[Result "1-0"]
[Round "1"]
[TimeControl "180+2"]
[Date "2023.06.13"]
[WhiteClock "0:00:06"]
[BlackClock "0:00:05"]
[Board "90"]

1. Nf3 {[%clk 0:02:58]}  Nf6 {[%clk 0:02:59]} 2. d3 {[%clk 0:02:55]}  c5 {[%clk 0:03:00]} 3. g3 {[%clk 0:02:52]}  g6 {[%clk 0:03:00]} 4. Bg2 {[%clk 0:02:53]}  Bg7 {[%clk 0:03:00]} 5. O-O {[%clk 0:02:51]}  O-O {[%clk 0:03:00]} 6. c3 {[%clk 0:02:45]}  d6 {[%clk 0:02:56]} 7. Nbd2 {[%clk 0:02:39]}  Nc6 {[%clk 0:02:56]} 8. a3 {[%clk 0:02:38]}  a5 {[%clk 0:02:53]} 9. a4 {[%clk 0:02:37]}  Bd7 {[%clk 0:02:53]} 10. Nc4 {[%clk 0:02:36]}  Be6 {[%clk 0:02:45]} 11. Na3 {[%clk 0:02:34]}  Qd7 {[%clk 0:02:41]} 12. Nb5 {[%clk 0:02:29]}  Bh3 {[%clk 0:02:37]} 13. Bg5 {[%clk 0:02:23]}  Bxg2 {[%clk 0:02:27]} 14. Kxg2 {[%clk 0:02:24]}  Ne8 {[%clk 0:02:27]} 15. Qd2 {[%clk 0:02:21]}  Nc7 {[%clk 0:02:27]} 16. Nxc7 {[%clk 0:02:19]}  Qxc7 {[%clk 0:02:26]} 17. Bh6 {[%clk 0:02:20]}  Rab8 {[%clk 0:02:20]} 18. h4 {[%clk 0:02:19]}  d5 {[%clk 0:02:04]} 19. h5 {[%clk 0:02:18]}  Ne5 {[%clk 0:02:03]} 20. Rh1 {[%clk 0:02:13]}  Nxf3 {[%clk 0:02:00]} 21. exf3 {[%clk 0:02:12]}  Bh8 {[%clk 0:01:08]} 22. hxg6 {[%clk 0:02:09]}  fxg6 {[%clk 0:01:07]} 23. Bxf8 {[%clk 0:02:09]}  Rxf8 {[%clk 0:01:06]} 24. Qg5 {[%clk 0:01:57]}  e6 {[%clk 0:00:58]} 25. Rae1 {[%clk 0:01:54]}  Qf7 {[%clk 0:00:58]} 26. Qg4 {[%clk 0:01:50]}  e5 {[%clk 0:00:56]} 27. Rh5 {[%clk 0:01:49]}  Bg7 {[%clk 0:00:51]} 28. Rhxe5 {[%clk 0:01:48]}  Bxe5 {[%clk 0:00:51]} 29. Rxe5 {[%clk 0:01:48]}  b6 {[%clk 0:00:34]} 30. Qe6 {[%clk 0:01:39]}  Rd8 {[%clk 0:00:19]} 31. Qe7 {[%clk 0:01:30]}  Qxe7 {[%clk 0:00:18]} 32. Rxe7 {[%clk 0:01:29]}  c4 {[%clk 0:00:19]} 33. d4 {[%clk 0:01:12]}  b5 {[%clk 0:00:18]} 34. Rb7 {[%clk 0:00:57]}  bxa4 {[%clk 0:00:17]} 35. Rb5 {[%clk 0:00:57]}  Kf7 {[%clk 0:00:14]} 36. Kf1 {[%clk 0:00:49]}  Ke6 {[%clk 0:00:14]} 37. Ke2 {[%clk 0:00:48]}  h5 {[%clk 0:00:14]} 38. Ke3 {[%clk 0:00:38]}  Ra8 {[%clk 0:00:13]} 39. f4 {[%clk 0:00:30]}  Ra7 {[%clk 0:00:12]} 40. Kd2 {[%clk 0:00:30]}  Ra8 {[%clk 0:00:12]} 41. Kc2 {[%clk 0:00:27]}  Ra7 {[%clk 0:00:12]} 42. Rb6+ {[%clk 0:00:27]}  Kf5 {[%clk 0:00:12]} 43. Rd6 {[%clk 0:00:27]}  Ke4 {[%clk 0:00:12]} 44. Rxg6 {[%clk 0:00:25]}  Rh7 {[%clk 0:00:12]} 45. Re6+ {[%clk 0:00:14]}  Kf3 {[%clk 0:00:12]} 46. f5 {[%clk 0:00:10]}  Kxf2 {[%clk 0:00:12]} 47. Rg6 {[%clk 0:00:10]}  Kf3 {[%clk 0:00:10]} 48. f6 {[%clk 0:00:10]}  Ke4 {[%clk 0:00:10]} 49. Rg7 {[%clk 0:00:10]}  Rh8 {[%clk 0:00:10]} 50. f7 {[%clk 0:00:10]}  Rf8 {[%clk 0:00:10]} 51. Rg5 {[%clk 0:00:03]}  Rxf7 {[%clk 0:00:10]} 52. Re5+ {[%clk 0:00:03]}  Kf3 {[%clk 0:00:09]} 53. Rxh5 {[%clk 0:00:04]}  Rd7 {[%clk 0:00:09]} 54. Rg5 {[%clk 0:00:04]}  Ke3 {[%clk 0:00:10]} 55. Re5+ {[%clk 0:00:04]}  Kf3 {[%clk 0:00:09]} 56. Rg5 {[%clk 0:00:04]}  Ke3 {[%clk 0:00:09]} 57. g4 {[%clk 0:00:05]}  Rf7 {[%clk 0:00:09]} 58. Re5+ {[%clk 0:00:04]}  Kf4 {[%clk 0:00:07]} 59. Rxd5 {[%clk 0:00:04]}  Kxg4 {[%clk 0:00:08]} 60. Rc5 {[%clk 0:00:03]}  Rf2+ {[%clk 0:00:08]} 61. Kb1 {[%clk 0:00:03]}  a3 {[%clk 0:00:05]} 62. bxa3 {[%clk 0:00:03]}  Rf1+ {[%clk 0:00:04]} 63. Kb2 {[%clk 0:00:03]}  Rf2+ {[%clk 0:00:05]} 64. Kb1 {[%clk 0:00:03]}  Rf1+ {[%clk 0:00:05]} 65. Kc2 {[%clk 0:00:04]}  Rf2+ {[%clk 0:00:05]} 66. Kc1 {[%clk 0:00:04]}  Rf1+ {[%clk 0:00:05]} 67. Kd2 {[%clk 0:00:05]}  Rf2+ {[%clk 0:00:06]} 68. Ke3 {[%clk 0:00:05]}  Ra2 {[%clk 0:00:06]} 69. Rxc4 {[%clk 0:00:03]}  Rxa3 {[%clk 0:00:06]} 70. Kd3 {[%clk 0:00:03]}  Kf5 {[%clk 0:00:06]} 71. Rc5+ {[%clk 0:00:03]}  Ke6 {[%clk 0:00:07]} 72. Re5+ {[%clk 0:00:04]}  Kd6 {[%clk 0:00:07]} 73. Rh5 {[%clk 0:00:04]}  Ra1 {[%clk 0:00:07]} 74. Kc4 {[%clk 0:00:03]}  Kc7 {[%clk 0:00:07]} 75. Rh7+ {[%clk 0:00:03]}  Kd6 {[%clk 0:00:06]} 76. Rh6+ {[%clk 0:00:04]}  Kc7 {[%clk 0:00:06]} 77. Kc5 {[%clk 0:00:05]}  a4 {[%clk 0:00:06]} 78. Rh7+ {[%clk 0:00:05]}  Kd8 {[%clk 0:00:07]} 79. Ra7 {[%clk 0:00:03]}  a3 {[%clk 0:00:07]} 80. Kb4 {[%clk 0:00:03]}  a2 {[%clk 0:00:07]} 81. Kb3 {[%clk 0:00:03]}  Rb1+ {[%clk 0:00:05]} 82. Kxa2 {[%clk 0:00:03]}  Rb6 {[%clk 0:00:06]} 83. Ra3 {[%clk 0:00:04]}  Kc7 {[%clk 0:00:05]} 84. Rb3 {[%clk 0:00:04]}  Rh6 {[%clk 0:00:06]} 85. Rb4 {[%clk 0:00:03]}  Kc6 {[%clk 0:00:06]} 86. Kb3 {[%clk 0:00:04]}  Kd5 {[%clk 0:00:06]} 87. Rb5+ {[%clk 0:00:04]}  Ke4 {[%clk 0:00:07]} 88. Rg5 {[%clk 0:00:04]}  Rb6+ {[%clk 0:00:05]} 89. Kc4 {[%clk 0:00:04]}  Rc6+ {[%clk 0:00:05]} 90. Rc5 {[%clk 0:00:04]}  Re6 {[%clk 0:00:06]} 91. Re5+ {[%clk 0:00:04]}  Rxe5 {[%clk 0:00:06]} 92. dxe5 {[%clk 0:00:05]}  Kxe5 {[%clk 0:00:07]} 93. Kc5 {[%clk 0:00:05]}  Ke6 {[%clk 0:00:05]} 94. c4 {[%clk 0:00:06]} 1-0


[Site "https://www.chess.com"]

[Event "Titled Tuesday Blitz June 13 Late 2023"]
[White "Myers, Dominique"]
[Black "Tatarinov, Dmitry"]
[WhiteFideId "2041715"]
[BlackFideId "24160067"]
[WhiteElo "1951"]
[BlackElo "2326"]
[Result "1-0"]
[Round "1"]
[TimeControl "180+2"]
[Date "2023.06.13"]
[WhiteClock "0:01:16"]
[BlackClock "0:00:26"]
[Board "91"]

1. e4 {[%clk 0:02:55]}  c5 {[%clk 0:02:59]} 2. Nf3 {[%clk 0:02:56]}  d6 {[%clk 0:02:59]} 3. d4 {[%clk 0:02:56]}  cxd4 {[%clk 0:02:58]} 4. Nxd4 {[%clk 0:02:57]}  Nf6 {[%clk 0:02:59]} 5. Nc3 {[%clk 0:02:57]}  a6 {[%clk 0:02:59]} 6. h3 {[%clk 0:02:57]}  e6 {[%clk 0:02:59]} 7. g4 {[%clk 0:02:58]}  Be7 {[%clk 0:02:59]} 8. Bg2 {[%clk 0:02:58]}  O-O {[%clk 0:02:59]} 9. O-O {[%clk 0:02:58]}  Qc7 {[%clk 0:02:59]} 10. a4 {[%clk 0:02:57]}  Bd7 {[%clk 0:02:58]} 11. Be3 {[%clk 0:02:57]}  Nc6 {[%clk 0:02:58]} 12. Qe2 {[%clk 0:02:50]}  Nxd4 {[%clk 0:02:58]} 13. Bxd4 {[%clk 0:02:51]}  Bc6 {[%clk 0:02:58]} 14. Rad1 {[%clk 0:02:50]}  Rac8 {[%clk 0:02:58]} 15. g5 {[%clk 0:02:50]}  Nd7 {[%clk 0:02:58]} 16. f4 {[%clk 0:02:50]}  e5 {[%clk 0:02:48]} 17. Be3 {[%clk 0:02:49]}  exf4 {[%clk 0:02:48]} 18. Bxf4 {[%clk 0:02:48]}  Ne5 {[%clk 0:02:49]} 19. Kh2 {[%clk 0:02:41]}  Qa5 {[%clk 0:02:46]} 20. Nd5 {[%clk 0:02:35]}  Bxd5 {[%clk 0:02:45]} 21. Rxd5 {[%clk 0:02:35]}  Qxa4 {[%clk 0:02:45]} 22. b3 {[%clk 0:02:34]}  Qa2 {[%clk 0:02:45]} 23. Rf2 {[%clk 0:02:34]}  Qb2 {[%clk 0:02:36]} 24. Kh1 {[%clk 0:02:33]}  Rc6 {[%clk 0:02:34]} 25. c4 {[%clk 0:02:21]}  Qxb3 {[%clk 0:02:32]} 26. c5 {[%clk 0:02:19]}  Ng6 {[%clk 0:02:28]} 27. Bxd6 {[%clk 0:02:17]}  Re8 {[%clk 0:02:14]} 28. Qd2 {[%clk 0:02:11]}  Bd8 {[%clk 0:01:40]} 29. e5 {[%clk 0:02:10]}  a5 {[%clk 0:01:30]} 30. Rd3 {[%clk 0:02:10]}  Qb1+ {[%clk 0:01:28]} 31. Rf1 {[%clk 0:02:10]}  Qb4 {[%clk 0:01:26]} 32. Qxb4 {[%clk 0:02:08]}  axb4 {[%clk 0:01:27]} 33. Bd5 {[%clk 0:02:03]}  Re6 {[%clk 0:01:11]} 34. Bxe6 {[%clk 0:01:55]}  fxe6 {[%clk 0:01:12]} 35. Rdf3 {[%clk 0:01:53]}  h6 {[%clk 0:00:58]} 36. gxh6 {[%clk 0:01:53]}  gxh6 {[%clk 0:00:58]} 37. Rg1 {[%clk 0:01:52]}  Bg5 {[%clk 0:00:52]} 38. Rf6 {[%clk 0:01:46]}  Kg7 {[%clk 0:00:51]} 39. Rxe6 {[%clk 0:01:46]}  Nf4 {[%clk 0:00:49]} 40. Re7+ {[%clk 0:01:44]}  Kg6 {[%clk 0:00:49]} 41. Rxb7 {[%clk 0:01:45]}  Nxh3 {[%clk 0:00:46]} 42. Re1 {[%clk 0:01:42]}  Nf2+ {[%clk 0:00:44]} 43. Kg2 {[%clk 0:01:41]}  Nd3 {[%clk 0:00:45]} 44. Rd1 {[%clk 0:01:35]}  Nxc5 {[%clk 0:00:45]} 45. Rxb4 {[%clk 0:01:30]}  Ne6 {[%clk 0:00:44]} 46. Kf3 {[%clk 0:01:27]}  Rc3+ {[%clk 0:00:44]} 47. Ke4 {[%clk 0:01:26]}  Nf4 {[%clk 0:00:41]} 48. Rb6 {[%clk 0:01:23]}  Kf7 {[%clk 0:00:39]} 49. Kf5 {[%clk 0:01:22]}  Ng6 {[%clk 0:00:35]} 50. Rb7+ {[%clk 0:01:19]}  Ne7+ {[%clk 0:00:35]} 51. Bxe7 {[%clk 0:01:19]}  Bxe7 {[%clk 0:00:35]} 52. e6+ {[%clk 0:01:19]}  Kf8 {[%clk 0:00:35]} 53. Rdd7 {[%clk 0:01:17]}  Rc5+ {[%clk 0:00:34]} 54. Kg6 {[%clk 0:01:16]}  Rg5+ {[%clk 0:00:30]} 55. Kxh6 {[%clk 0:01:16]}  Rg7 {[%clk 0:00:26]} 56. Rb8+ {[%clk 0:01:16]} 1-0


[Site "https://www.chess.com"]

[Event "Titled Tuesday Blitz June 13 Late 2023"]
[White "Tanenbaum, Zachary"]
[Black "Carrasco Miranda, Andres"]
[WhiteFideId "2060850"]
[BlackFideId "3405990"]
[WhiteElo "2207"]
[BlackElo "2183"]
[Result "0-1"]
[Round "1"]
[TimeControl "180+2"]
[Date "2023.06.13"]
[WhiteClock "0:00:02"]
[BlackClock "0:00:10"]
[Board "92"]

1. e4 {[%clk 0:03:00]}  e5 {[%clk 0:02:46]} 2. Nf3 {[%clk 0:03:01]}  Nc6 {[%clk 0:02:45]} 3. Bc4 {[%clk 0:03:01]}  Bc5 {[%clk 0:02:45]} 4. c3 {[%clk 0:03:01]}  Nf6 {[%clk 0:02:44]} 5. d4 {[%clk 0:03:01]}  exd4 {[%clk 0:02:44]} 6. b4 {[%clk 0:03:02]}  Be7 {[%clk 0:02:43]} 7. e5 {[%clk 0:03:02]}  Ne4 {[%clk 0:02:41]} 8. b5 {[%clk 0:02:58]}  Na5 {[%clk 0:02:41]} 9. Bd3 {[%clk 0:02:50]}  d5 {[%clk 0:02:41]} 10. exd6 {[%clk 0:02:43]}  Nxd6 {[%clk 0:02:36]} 11. Nxd4 {[%clk 0:02:40]}  O-O {[%clk 0:02:33]} 12. O-O {[%clk 0:02:40]}  Bf6 {[%clk 0:02:33]} 13. Qc2 {[%clk 0:02:27]}  g6 {[%clk 0:02:31]} 14. Bh6 {[%clk 0:02:26]}  Re8 {[%clk 0:02:32]} 15. Nd2 {[%clk 0:02:24]}  c5 {[%clk 0:02:17]} 16. bxc6 {[%clk 0:02:22]}  Nxc6 {[%clk 0:02:17]} 17. Nxc6 {[%clk 0:02:19]}  bxc6 {[%clk 0:02:18]} 18. Ne4 {[%clk 0:02:11]}  Nxe4 {[%clk 0:02:15]} 19. Bxe4 {[%clk 0:02:12]}  Qc7 {[%clk 0:02:08]} 20. Rfe1 {[%clk 0:02:07]}  Be6 {[%clk 0:02:05]} 21. Qd3 {[%clk 0:01:58]}  Bd5 {[%clk 0:02:02]} 22. Bxd5 {[%clk 0:01:26]}  cxd5 {[%clk 0:02:02]} 23. Qxd5 {[%clk 0:01:04]}  Qxc3 {[%clk 0:02:01]} 24. Be3 {[%clk 0:00:55]}  Rad8 {[%clk 0:01:52]} 25. Qf3 {[%clk 0:00:53]}  Qxa1 {[%clk 0:01:45]} 26. Rxa1 {[%clk 0:00:52]}  Bxa1 {[%clk 0:01:46]} 27. h4 {[%clk 0:00:51]}  Bd4 {[%clk 0:01:45]} 28. Bg5 {[%clk 0:00:48]}  Rc8 {[%clk 0:01:40]} 29. h5 {[%clk 0:00:46]}  Rc2 {[%clk 0:01:31]} 30. Bh4 {[%clk 0:00:41]}  Re1+ {[%clk 0:01:01]} 31. Kh2 {[%clk 0:00:41]}  Be5+ {[%clk 0:01:01]} 32. g3 {[%clk 0:00:21]}  Ree2 {[%clk 0:01:02]} 33. Qa8+ {[%clk 0:00:16]}  Kg7 {[%clk 0:01:02]} 34. Bg5 {[%clk 0:00:08]}  Rxf2+ {[%clk 0:00:57]} 35. Kh3 {[%clk 0:00:09]}  gxh5 {[%clk 0:00:50]} 36. Bh6+ {[%clk 0:00:05]}  Kxh6 {[%clk 0:00:49]} 37. Qf8+ {[%clk 0:00:05]}  Bg7 {[%clk 0:00:47]} 38. Qd6+ {[%clk 0:00:05]}  f6 {[%clk 0:00:35]} 39. g4 {[%clk 0:00:04]}  Rh2+ {[%clk 0:00:24]} 40. Kg3 {[%clk 0:00:04]}  Rhg2+ {[%clk 0:00:18]} 41. Kf4 {[%clk 0:00:03]}  Rxg4+ {[%clk 0:00:17]} 42. Kf5 {[%clk 0:00:03]}  Rf2+ {[%clk 0:00:17]} 43. Ke6 {[%clk 0:00:04]}  h4 {[%clk 0:00:16]} 44. Kf7 {[%clk 0:00:04]}  h3 {[%clk 0:00:15]} 45. Qd5 {[%clk 0:00:02]}  h2 {[%clk 0:00:13]} 46. Qc6 {[%clk 0:00:03]}  Rg1 {[%clk 0:00:11]} 47. Qe4 {[%clk 0:00:02]}  h1=Q {[%clk 0:00:11]} 48. Kg8 {[%clk 0:00:02]}  Bf8+ {[%clk 0:00:10]} 49. Kh8 {[%clk 0:00:02]}  Qxe4 {[%clk 0:00:10]} 50. a3 {[%clk 0:00:01]}  Qg6 {[%clk 0:00:10]} 51. a4 {[%clk 0:00:02]}  Qg7# {[%clk 0:00:10]} 0-1


[Site "https://www.chess.com"]

[Event "Titled Tuesday Blitz June 13 Late 2023"]
[White "Nikologorsky, Matfei"]
[Black "Zwirs, Nico"]
[WhiteFideId "24102474"]
[BlackFideId "1036432"]
[WhiteElo "2153"]
[BlackElo "2381"]
[Result "0-1"]
[Round "1"]
[TimeControl "180+2"]
[Date "2023.06.13"]
[WhiteClock "0:01:26"]
[BlackClock "0:02:21"]
[Board "93"]

1. e4 {[%clk 0:03:00]}  c5 {[%clk 0:02:59]} 2. Nf3 {[%clk 0:03:00]}  d6 {[%clk 0:02:59]} 3. d4 {[%clk 0:03:01]}  cxd4 {[%clk 0:03:00]} 4. Nxd4 {[%clk 0:03:01]}  Nf6 {[%clk 0:03:01]} 5. Nc3 {[%clk 0:03:01]}  Bd7 {[%clk 0:03:01]} 6. g3 {[%clk 0:03:00]}  Nc6 {[%clk 0:02:59]} 7. Bg2 {[%clk 0:02:59]}  g6 {[%clk 0:02:58]} 8. O-O {[%clk 0:02:56]}  Bg7 {[%clk 0:02:59]} 9. Nb3 {[%clk 0:02:55]}  h5 {[%clk 0:02:58]} 10. h3 {[%clk 0:02:54]}  Qc8 {[%clk 0:02:58]} 11. Kh2 {[%clk 0:02:54]}  Ne5 {[%clk 0:02:58]} 12. f4 {[%clk 0:02:50]}  Nc4 {[%clk 0:02:53]} 13. Qe2 {[%clk 0:02:40]}  Rb8 {[%clk 0:02:42]} 14. e5 {[%clk 0:02:31]}  dxe5 {[%clk 0:02:43]} 15. fxe5 {[%clk 0:02:31]}  Nxe5 {[%clk 0:02:34]} 16. Bf4 {[%clk 0:02:26]}  Nc6 {[%clk 0:02:27]} 17. Bxb8 {[%clk 0:02:25]}  Qxb8 {[%clk 0:02:27]} 18. Nc5 {[%clk 0:02:01]}  h4 {[%clk 0:02:26]} 19. Qf2 {[%clk 0:01:26]}  Ng4+ {[%clk 0:02:21]} 0-1


[Site "https://www.chess.com"]

[Event "Titled Tuesday Blitz June 13 Late 2023"]
[White "Papasimakopoulos, Alexandros"]
[Black "Bueno, Alfeu Junior Varela"]
[WhiteFideId "4244125"]
[BlackFideId "2108879"]
[WhiteElo "2359"]
[BlackElo "2175"]
[Result "1-0"]
[Round "1"]
[TimeControl "180+2"]
[Date "2023.06.13"]
[WhiteClock "0:02:21"]
[BlackClock "0:02:28"]
[Board "94"]

1. d4 {[%clk 0:03:00]}  e6 {[%clk 0:03:00]} 2. c4 {[%clk 0:02:55]}  f5 {[%clk 0:03:01]} 3. g3 {[%clk 0:02:54]}  Nf6 {[%clk 0:03:00]} 4. Bg2 {[%clk 0:02:54]}  Be7 {[%clk 0:03:01]} 5. Nf3 {[%clk 0:02:55]}  O-O {[%clk 0:03:01]} 6. O-O {[%clk 0:02:55]}  d6 {[%clk 0:03:01]} 7. b3 {[%clk 0:02:56]}  Nc6 {[%clk 0:03:02]} 8. Bb2 {[%clk 0:02:56]}  Qe8 {[%clk 0:03:02]} 9. Nc3 {[%clk 0:02:55]}  a6 {[%clk 0:03:02]} 10. d5 {[%clk 0:02:54]}  Ne5 {[%clk 0:03:00]} 11. dxe6 {[%clk 0:02:42]}  Nc6 {[%clk 0:02:48]} 12. Nd5 {[%clk 0:02:39]}  Bd8 {[%clk 0:02:48]} 13. Bxf6 {[%clk 0:02:32]}  gxf6 {[%clk 0:02:46]} 14. Nf4 {[%clk 0:02:27]}  Bxe6 {[%clk 0:02:40]} 15. Nxe6 {[%clk 0:02:26]}  Qxe6 {[%clk 0:02:41]} 16. Nd4 {[%clk 0:02:24]}  Nxd4 {[%clk 0:02:28]} 17. Bd5 {[%clk 0:02:21]} 1-0


[Site "https://www.chess.com"]